Workbook

Sheet Commentary
A90: Revision History
B91: Jan 2019 | C91: The instructions were expanded to address protecting and unprotecting sheets.
B92: July 2018 | C92: A line was added to the lookup table so the workbook works in Ontario with either the old Construction Lien Act or the new Construction Act. The lookup tables have been expanded with parameters from the other jurisdictions in Canada besides Ontario for use on projects in those jurisdictions. In addition the labels on the tabs have been enhanced to reflect the terminology/parameters of the selected jurisdiction.
B93: May 2017 | C93: The Certificate For Payment was reorganized to better reflect that the certification is of the value of the work completed to date and the amount owing to the contractor this payment period. The calculation are provided for convenience and information, and are themselves not being certified.
B94: May 2017 | C94: The calculation of statutory holdback has been changed to explicitly show separate line items for basic and finishing holdback. This requires one additional step by the user for projects in Ontario: to enter the amount of work complete at Substantial Performance (In the labelled cell that is part of the Trial Certificate of Substantial Performance). It does however permit the workbook to be used for projects being done in other provinces or territories where there may be no finishing holdback or a different calculation may be required.

Sheet Project Info
A1: Schedule of Values/Certificate for Payment workbook | L1: Rev. 2019 01
A2: History
B3: The version was updated to work with the new Construction Act, and at the same time was expanded to work with the lien legislation of the other jurisdictions in Canada. It is made available through the OAA's PAR committee.
B4: The first public version was made available through the OAA's CCA committee. It worked with the Construction Lien Act of Ontario only.
B5: The original version of this workbook was developed 30 years ago to assist the author in checking applications for payment.
A6: Initial Instructions:
A7: 0 | B7: The proper functioning of this workbook depends on the operation of macro programming written using Visual Basic for Applications (VBA). The VBA language is a part of the applications in the Microsoft Office suite. Unless macros are enabled, this workbook will not function properly.
B8: If used with malicious intent, VBA macros can be used to attack or damage computer files. The macros used in this workbook copy tabs and information between tabs. They do not access any other file or the internet, nor have they caused any known issues with other programs.
B9: To avoid anyone easily tampering with the macros and circulating an infected file, access to the macros is protected. To protect yourself, you should download a copy of the workbook directly from the OAA web site. This also ensures you have the latest version of the workbook complete with any bug fixes and enhancements.
B10: Before this workbook will function, you wil need to enable macros by clicking on the button below the menu bar or by declaring this file to be a trusted file or by putting it in a trusted folder.
B11: When protected, you should be able to enter data into any of the green shaded cells. It is recommended that you protect the sheets to avoid accidentally changing or deleting formulas.
A14: 1 | B14: Fill in the initial information in the green shaded cells below.
B16: Client Name | C16: Favourite Client Company
B17: Client Address 1 | C17: Client Address 1
B18: Client Address 2 | C18: Client Address 2
B19: Client Representative | C19: Favourite Person
B20: Building Permit Number | C20: 18 111999 BLD 00 BA
B21: Project Number | C21: 18.32001.00
B22: Project Name | C22: Award Winner
B23: Project Type | C23: Sustainable Office
B24: Consultant | C24: Visionary Architects
B25: Consultant Address 1 | C25: Address line 1
B26: Consultant Address 2 | C26: Address line 2
B27: Consultant Telephone | C27: (999) 123-4567
B28: Consultant Fax | C28: (000) 987-6543
B29: Contractor | C29: Quality Contractors Inc.
B30: Contract Amount | C30: 1234567.89
B31: Start of First Payment Period | C31: =DATE(C32,C33,C34) -> 2018-07-01
B32: Year | C32: 2018 | D32: YYYY
B33: Month | C33: 7 | D33: MM
B34: Day | C34: 1 | D34: DD
B35: Province | C35: Ontario
B36: Applicable Legislation | C36: Construction Act, Ontario
B37: Basic Holdback % | C37: 0.1
B38: Finishing Holdback % | C38: =Lookups!W30 -> 0.1
B39: Basis of Holdback Release | C39: -
B40: =IF(C39=Lookups!O7, "Annual release date:",IF(C39=Lookups!O8,"List phases:"," ")) -> 
B41: Tax Rate | C41: =Lookups!H30 -> 0.13
B42: Tax Type | C42: =Lookups!F30 -> HST
A45: =1+A14 -> 2 | B45: Insert or delete line items as needed to reflect the current project in the schedule of values on the "App For Payment-Template" tab.
A46: =A45+1 -> 3 | B46: If the sheet is protected, go to the Review tab and click on Unprotect Sheet.
A47: =A46+1 -> 4 | B47: Ensure the formulas are copied into the newly inserted lines.
A48: 5 | B48: Repeat across all columns.
A49: 6 | B49: Use the Record Docs tab to determine an appropriate value for the entire record documents.
A50: 7 | B50: Divide the total as appropriate across the various disciplines.
A51: 8 | B51: If not already included as part of the bid documents, send a PDF copy of the schedule of values portion of the worksheet
B52: to the Contractor as a template for their use in submitting the contract breakdown.
A54: Usage Instructions:
A55: =A51+1 -> 9 | B55: Copy the agreed upon contract breakdown values provided by the Contractor into the "Contract Amount" column.
A56: =1+A55 -> 10 | B56: When complete, go to the Review tab and click on Protect Sheet.
A57: 11 | B57: Click on the "Create a new Schedule of Values" button to create one.
A58: =1+A57 -> 12 | B58: Enter the percent complete into the green shaded cells in the "% to Date" column.
A59: =1+A58 -> 13 | B59: Enter any holdback released or deficiency amounts into the green boxes in the Certificate section.
A60: =1+A58 -> 13 | B60: Compare the totals and certificate values with the Contractor's application for payment.
B61: If all agrees, prepare a Certificate For Payment.
B62: If there are differences, advise the Contractor and attempt to resolve them.
A63: =1+A60 -> 14 | B63: Submit a PDF of the schedule of values portion of the worksheet with the Certificate for Payment.
A64: =1+A63 -> 15 | B64: Convert the Date Issued field on the schedule of values from a formula to a date value (Copy and Paste values)
A66: Change Orders:
A67: =1+A64 -> 16 | B67: Change orders are handled the same way as line items in the schedule of values section with one major difference.
B68: The difference allows you to enter the change order information when it is issued, but not have it affect the contract amount until approved.
B69: There is a formula in the contract amount column
B70: The change order amount is initially entered in the green shaded "CO Amount" column.
B71: When the change order is signed by the Owner and Contractor, an entry is made in the green shaded "Approved" column.
B72: This causes the amount to be displayed in the "Contract Amount" column.
A74: Substantial Performance:
A75: =1+A67 -> 17 | B75: The substantial performance section below the schedule of values section automatically calculates and displays the status of the project.
B76: When substantial performance has been achieved, enter the value of the work completed at substantial performance in the cell indicated.
B77: Doing so allows the finishing holdback to be calculated at a different rate where required by the jurisdiction of the place of the work.
A79: Deemed Completion:
A80: =1+A75 -> 18 | B80: The deemed completion section below the substantial performance section automatically calculates and displays the status of the project.
A82: Deficiency Retainage
A83: =1+A80 -> 19 | B83: The Deficiency Retainage line item on the certificates for payment is provided for those who use this method.
B84: It is preferable to reflect the value to correct deficient work in the appropriate line items of the schedule of values
B85: so that you are only certifying the value of work completed in accordance with the contract documents.
B86: The latter method makes it explicit to the general contractor and the sub-contractors which items are deficient.
B87: It also makes it easier to adjust the schedule of values as the deficiencies are completed.

Sheet Record Docs
B1: Proposed Value of As-Builts/Close-out Documents
C2: Hide these 2 columns
B3: Initial Contract Value: | E3: ='Project Info'!$C$30 -> 1234567.89
B5: Calculations of value based on percentage of initial contract value
A6: Calc 1 | B6: Initial Contract Value Range | C6: Limits | D6: Percentage | E6: =D6 -> Percentage | F6: As-Built Value | G6: Rounded
B7: ="Less than $"&$C$7 -> Less than $150000 | C7: 150000 | D7: 0.03 | E7: =$D$7 -> 0.03
B8: ="From $"&$C$7&" to $"&$C$8 -> From $150000 to $300000 | C8: 300000 | D8: 0.02 | E8: =$D$8 -> 0.02
B9: ="From $"&$C$8&" to $"&$C$9 -> From $300000 to $750000 | C9: 750000 | D9: 0.01 | E9: =$D$9 -> 0.01
B10: ="Greater than $"&$C$9 -> Greater than $750000 | D10: 0.005 | E10: =$D$10 -> 0.005
E11: =$D$10 -> 0.005
E12: =IF($E$3<C7,D7,IF($E$3<C8,D8,IF($E$3<C9,D9,D10))) -> 0.005 | F12: =$E$3*E12 -> 6172.83945 | G12: =ROUNDUP(F12,-1) -> 6180
A13: Calc 2 | B13: Initial Contract Value | C13: Differential | E13: =E6 -> Percentage | F13: As-Built Value | G13: Rounded
B14: ="On the first $"&$C$7 -> On the first $150000 | C14: =$C$7 -> 150000 | D14: =$D$7 -> 0.03 | E14: =$D$7 -> 0.03 | F14: =IF($E$3>0,IF($E$3<$C$7,$E$3*$D$7,$C$7*$D$7),0) -> 4500
B15: ="On the next $"&$C$8-$C$7 -> On the next $150000 | C15: =$C$8-$C$7 -> 150000 | D15: =$D$8 -> 0.02 | E15: =$D$8 -> 0.02 | F15: =IF($E$3>$C$7,IF($E$3<$C$8,($E$3-$C$7)*$D$8,($C$8-$C$7)*$D$8),0) -> 3000
B16: ="On the next $"&$C$9-$C$8 -> On the next $450000 | C16: =$C$9-$C$8 -> 450000 | D16: =$D$9 -> 0.01 | E16: =$D$9 -> 0.01 | F16: =IF($E$3>$C$8,IF($E$3<$C$9,($E$3-$C$8)*$D$9,($C$9-$C$8)*$D$9),0) -> 4500
B17: ="On the remaining $"&IF($E$3>$C$9,$E$3-$C$9,0) -> On the remaining $484567.89 | C17: =IF($E$3>$C$9,$E$3-$C$9,0) -> 484567.89 | D17: =$D$10 -> 0.005 | E17: =$D$10 -> 0.005 | F17: =IF($E$3<$C$9,0,($E$3-$C$9)*$D$10) -> 2422.83945
F18: =SUM(F14:F17) -> 14422.83945 | G18: =ROUNDUP(F18,-1) -> 14430
B20: ="If this value exceeds "&TEXT($G$32,"$0,0.00")&" then Substantial Performance/Completion cannot be achieved without Close-out Document completion." -> If this value exceeds $34,691.36 then Substantial Performance/Completion cannot be achieved without Close-out Document completion.
B22: ="If this value is less than "&TEXT($G$39,"$0,0.00")&" then Deemed Completion can be achieved without Close-out Documents." -> If this value is less than $5,000.00 then Deemed Completion can be achieved without Close-out Documents.
B24: The appropriate record document value will vary depending on the nature of the project. Enter the desired value in the Schedule of Values before sending to the Contractor.
B27: Substantial Performance: | G27: ="Based on the "&Lookups!$AE$30 -> Based on the Construction Act, Ontario
B28: Initial Contract Amount | E28: =$E$3 -> 1234567.89
B29: =Lookups!$O$30*100&"% on 1st $"&Lookups!$P$30 -> 3% on 1st $1000000 | E29: =IF(E28>Lookups!$P$30,Lookups!$P$30,E28) -> 1000000 | F29: =Lookups!$O$30 -> 0.03 | G29: =ROUND($E29*$F29,2) -> 30000
B30: =Lookups!$Q$30*100&"% on next $"&Lookups!$R$30 -> 2% on next $1000000 | E30: =IF(E28>Lookups!$P$30+Lookups!$R$30,Lookups!$R$30,E28-E29) -> 234567.89 | F30: =Lookups!$Q$30 -> 0.02 | G30: =ROUND($E30*$F30,2) -> 4691.36
B31: =Lookups!$S$30*100&"% on remainder" -> 1% on remainder | E31: =IF(F31=0,0,IF(E28>Lookups!$P$30+Lookups!$R$30,E28-E29-E30,0)) -> 0 | F31: =Lookups!$S$30 -> 0.01 | G31: =ROUND($E31*$F31,2) -> 0
B32: Maximum outstanding per Act | G32: =SUM(G29:G31) -> 34691.36
B34: Deemed Completion: | G34: ="Based on the "&Lookups!$AE$30 -> Based on the Construction Act, Ontario
B35: Initial Contract Amount | E35: =$E$3 -> 1234567.89
B36: A % of contract amount | F36: =Lookups!$Y$30 -> 0.01 | G36: =ROUND(E35*F36,2) -> 12345.68
B37: ="B " & Act -> B Construction Act, Ontario | G37: =Lookups!$Z$30 -> 5000
B38: =IF(TRIM(Province)="Ontario"," (Section 2 subsection (3) limit)","") -> (Section 2 subsection (3) limit)
B39: Maximum outstanding per Act (lesser of A and B) | G39: =IF(G36>G37,G37,G36) -> 5000
B42: To change any of the calculation parameters, unhide columns C and D.

Sheet App For Payment-Template
A1: ='Project Info'!$C$16 -> Favourite Client Company | H1: Document 00 62 73
A2: Project Name: | B2: ='Project Info'!$C$22&" - "&'Project Info'!$C$23 -> Award Winner - Sustainable Office | H2: SCHEDULE OF VALUES
A3: Project Number: | B3: ='Project Info'!$C$21 -> 18.32001.00 | G3: Application for Payment #: | H3: 0
A4: Consultant: | B4: ='Project Info'!$C$24 -> Visionary Architects | G4: Issue Date: | H4: =NOW() -> 2020-05-07T14:21:47.040
A5: Contractor: | B5: ='Project Info'!$C$29 -> Quality Contractors Inc. | G5: For Period Ending: | H5: 2018-07-31
A6: Spec. Section | B6: Item | C6: Contract Amount | D6: % to Date | E6: Previous Amount | F6: Amount This Draw | G6: Completed to Date | H6: Balance to Complete
A7: General | B7: Insurance | C7: 0 | D7: 0 | E7: 0 | F7: =G7-E7 -> 0 | G7: =ROUND(C7*D7,2) -> 0 | H7: =C7-G7 -> 0
B8: Bonding | C8: 0 | D8: 0 | E8: 0 | F8: 0 | G8: 0 | H8: 0
B9: Mobilization | C9: 0 | D9: 0 | E9: 0 | F9: 0 | G9: 0 | H9: 0
B10: Supervision | C10: 0 | D10: 0 | E10: 0 | F10: 0 | G10: 0 | H10: 0
B11: Disposal | C11: 0 | D11: 0 | E11: 0 | F11: 0 | G11: 0 | H11: 0
B12: Labour | C12: 0 | D12: 0 | E12: 0 | F12: 0 | G12: 0 | H12: 0
B13: General Conditions | C13: 0 | D13: 0 | E13: 0 | F13: 0 | G13: 0 | H13: 0
A14: 01 73 29 | B14: Cutting & Patching | C14: 0 | D14: 0 | E14: 0 | F14: 0 | G14: 0 | H14: 0
A15: 01 77 00 | B15: Project Record Docs (Manuals/Docs/ As-builts) | C15: 0 | D15: 0 | E15: 0 | F15: 0 | G15: 0 | H15: 0
A16: 03 33 00 | B16: Cast-in-Place Concrete (below grade) | C16: 0 | D16: 0 | E16: 0 | F16: =G16-E16 -> 0 | G16: =ROUND(C16*D16,2) -> 0 | H16: =C16-G16 -> 0
A17: 03 33 00 | B17: Cast-in-Place Concrete (above grade) | C17: 0 | D17: 0 | E17: 0 | F17: =G17-E17 -> 0 | G17: =ROUND(C17*D17,2) -> 0 | H17: =C17-G17 -> 0
A18: 03 45 00 | B18: Precast Concrete | C18: 0 | D18: 0 | E18: 0 | F18: =G18-E18 -> 0 | G18: =ROUND(C18*D18,2) -> 0 | H18: =C18-G18 -> 0
A19: 04 21 13 | B19: Brick Masonry | C19: 0 | D19: 0 | E19: 0 | F19: =G19-E19 -> 0 | G19: =ROUND(C19*D19,2) -> 0 | H19: =C19-G19 -> 0
A20: 04 22 00 | B20: Concrete Unit Masonry | C20: 0 | D20: 0 | E20: 0 | F20: =G20-E20 -> 0 | G20: =ROUND(C20*D20,2) -> 0 | H20: =C20-G20 -> 0
A21: 05 12 00 | B21: Structural Steel Framing | C21: 0 | D21: 0 | E21: 0 | F21: =G21-E21 -> 0 | G21: =ROUND(C21*D21,2) -> 0 | H21: =C21-G21 -> 0
A22: 05 31 00 | B22: Steel Decking | C22: 0 | D22: 0 | E22: 0 | F22: 0 | G22: 0 | H22: 0
A23: 05 50 00 | B23: Metal Fabrications | C23: 0 | D23: 0 | E23: 0 | F23: 0 | G23: 0 | H23: 0
A24: 05 73 00 | B24: Handrail Railings | C24: 0 | D24: 0 | E24: 0 | F24: 0 | G24: 0 | H24: 0
A25: 06 10 00 | B25: Rough Carpentry | C25: 0 | D25: 0 | E25: 0 | F25: 0 | G25: 0 | H25: 0
A26: 06 40 23 | B26: Architectural Woodwork | C26: 0 | D26: 0 | E26: 0 | F26: 0 | G26: 0 | H26: 0
A27: 06 90 00 | B27: General Installations | C27: 0 | D27: 0 | E27: 0 | F27: 0 | G27: 0 | H27: 0
A28: 07 24 15 | B28: EIFS | C28: 0 | D28: 0 | E28: 0 | F28: =G28-E28 -> 0 | G28: =ROUND(C28*D28,2) -> 0 | H28: =C28-G28 -> 0
A29: 07 51 00 | B29: Roofing | C29: 0 | D29: 0 | E29: 0 | F29: =G29-E29 -> 0 | G29: =ROUND(C29*D29,2) -> 0 | H29: =C29-G29 -> 0
A30: 07 62 00 | B30: Sheet Metal Flashing & Trim | C30: 0 | D30: 0 | E30: 0 | F30: =G30-E30 -> 0 | G30: =ROUND(C30*D30,2) -> 0 | H30: =C30-G30 -> 0
A31: 07 92 00 | B31: Joint Sealants | C31: 0 | D31: 0 | E31: 0 | F31: 0 | G31: 0 | H31: 0
A32: 08 11 13 | B32: HM Doors/Frames | C32: 0 | D32: 0 | E32: 0 | F32: 0 | G32: 0 | H32: 0
A33: 08 11 16/08 43 29 | B33: Aluminum Sliding Doors | C33: 0 | D33: 0 | E33: 0 | F33: 0 | G33: 0 | H33: 0
A34: 08 41 13 | B34: Aluminum Framed Entrances | C34: 0 | D34: 0 | E34: 0 | F34: 0 | G34: 0 | H34: 0
A35: 08 51 13 | B35: Aluminum Windows | C35: 0 | D35: 0 | E35: 0 | F35: 0 | G35: 0 | H35: 0
A36: 08 71 00 | B36: Door Hardware Supply | C36: 0 | D36: 0 | E36: 0 | F36: 0 | G36: 0 | H36: 0
A37: 08 81 00/08 83 13 | B37: Glass Glazing/Mirrors | C37: 0 | D37: 0 | E37: 0 | F37: 0 | G37: 0 | H37: 0
A38: 08 87 00 | B38: Glazing Surface Film | C38: 0 | D38: 0 | E38: 0 | F38: 0 | G38: 0 | H38: 0
A39: 09 21 16 | B39: Gypsum Board Assemblies | C39: 0 | D39: 0 | E39: 0 | F39: 0 | G39: 0 | H39: 0
A40: 09 51 00 | B40: Acoustical Ceilings | C40: 0 | D40: 0 | E40: 0 | F40: 0 | G40: 0 | H40: 0
A41: 09 65 00 | B41: Resilient Flooring | C41: 0 | D41: 0 | E41: 0 | F41: 0 | G41: 0 | H41: 0
A42: 09 68 13 | B42: Tile Carpeting | C42: 0 | D42: 0 | E42: 0 | F42: 0 | G42: 0 | H42: 0
A43: 09 90 00 | B43: Painting & Coating | C43: 0 | D43: 0 | E43: 0 | F43: 0 | G43: 0 | H43: 0
A44: 09 91 00 | B44: Painting | C44: 0 | D44: 0 | E44: 0 | F44: 0 | G44: 0 | H44: 0
A45: 10 21 13.13 | B45: Metal Toilet Compartments | C45: 0 | D45: 0 | E45: 0 | F45: 0 | G45: 0 | H45: 0
A46: 10 26 13 | B46: Corner Guards | C46: 0 | D46: 0 | E46: 0 | F46: 0 | G46: 0 | H46: 0
A47: 10 26 16 | B47: Bumper Guards | C47: 0 | D47: 0 | E47: 0 | F47: 0 | G47: 0 | H47: 0
A48: 11 52 13 | B48: Projection Screens | C48: 0 | D48: 0 | E48: 0 | F48: 0 | G48: 0 | H48: 0
A49: 11 52 23 | B49: TV/VCR Mount | C49: 0 | D49: 0 | E49: 0 | F49: =G49-E49 -> 0 | G49: =ROUND(C49*D49,2) -> 0 | H49: =C49-G49 -> 0
A50: 12 48 16 | B50: Entrance Floor Grilles | C50: 0 | D50: 0 | E50: 0 | F50: 0 | G50: 0 | H50: 0
A51: 12 24 13 | B51: Roller Shades | C51: 0 | D51: 0 | E51: 0 | F51: 0 | G51: 0 | H51: 0
A52: 32 12 16 | B52: Asphalt Paving | C52: 0 | D52: 0 | E52: 0 | F52: =G52-E52 -> 0 | G52: =ROUND(C52*D52,2) -> 0 | H52: =C52-G52 -> 0
A53: 32 31 13 | B53: Chain Link Fencing | C53: 0 | D53: 0 | E53: 0 | F53: =G53-E53 -> 0 | G53: =ROUND(C53*D53,2) -> 0 | H53: =C53-G53 -> 0
B54: Architectural subtotal: | C54: =SUM(C7:C53) -> 0 | D54: =IF(C54=0,0,G54/C54) -> 0 | E54: =SUM(E7:E53) -> 0 | F54: =SUM(F7:F53) -> 0 | G54: =SUM(G7:G53) -> 0 | H54: =SUM(H7:H53) -> 0
A56: 21 00 00 | B56: Fire Supression - Labour | C56: 0 | D56: 0 | E56: 0 | F56: =G56-E56 -> 0 | G56: =ROUND(C56*D56,2) -> 0 | H56: =C56-G56 -> 0
B57: Fire Supression - other | C57: 0 | D57: 0 | E57: 0 | F57: 0 | G57: 0 | H57: 0
B58: Piping | C58: 0 | D58: 0 | E58: 0 | F58: 0 | G58: 0 | H58: 0
B59: Supports | C59: 0 | D59: 0 | E59: 0 | F59: 0 | G59: 0 | H59: 0
B60: Sprinkler heads | C60: 0 | D60: 0 | E60: 0 | F60: 0 | G60: 0 | H60: 0
B61: Fire Stopping/Sealants | C61: 0 | D61: 0 | E61: 0 | F61: =G61-E61 -> 0 | G61: =ROUND(C61*D61,2) -> 0 | H61: =C61-G61 -> 0
B62: Manuals/Documentation/As-builts | C62: 0 | D62: 0 | E62: 0 | F62: 0 | G62: 0 | H62: 0
A64: 22 00 00 | B64: Plumbing - Labour | C64: 0 | D64: 0 | E64: 0 | F64: =G64-E64 -> 0 | G64: =ROUND(C64*D64,2) -> 0 | H64: =C64-G64 -> 0
B65: Plumbing - other | C65: 0 | D65: 0 | E65: 0 | F65: 0 | G65: 0 | H65: 0
B66: Piping | C66: 0 | D66: 0 | E66: 0 | F66: 0 | G66: 0 | H66: 0
B67: Insulation | C67: 0 | D67: 0 | E67: 0 | F67: 0 | G67: 0 | H67: 0
B68: Fixtures | C68: 0 | D68: 0 | E68: 0 | F68: 0 | G68: 0 | H68: 0
B69: Manuals/Documentation/As-builts | C69: 0 | D69: 0 | E69: 0 | F69: 0 | G69: 0 | H69: 0
A71: 23 00 00 | B71: HVAC - Labour | C71: 0 | D71: 0 | E71: 0 | F71: =G71-E71 -> 0 | G71: =ROUND(C71*D71,2) -> 0 | H71: =C71-G71 -> 0
B72: Roof top units | C72: 0 | D72: 0 | E72: 0 | F72: =G72-E72 -> 0 | G72: =ROUND(C72*D72,2) -> 0 | H72: =C72-G72 -> 0
B73: Chillers | C73: 0 | D73: 0 | E73: 0 | F73: =G73-E73 -> 0 | G73: =ROUND(C73*D73,2) -> 0 | H73: =C73-G73 -> 0
B74: Condensors | C74: 0 | D74: 0 | E74: 0 | F74: 0 | G74: 0 | H74: 0
B75: Ductwork | C75: 0 | D75: 0 | E75: 0 | F75: 0 | G75: 0 | H75: 0
B76: Grilles/diffusers | C76: 0 | D76: 0 | E76: 0 | F76: 0 | G76: 0 | H76: 0
B77: Controls | C77: 0 | D77: 0 | E77: 0 | F77: 0 | G77: 0 | H77: 0
B78: Clean up | C78: 0 | D78: 0 | E78: 0 | F78: 0 | G78: 0 | H78: 0
B79: Installation | C79: 0 | D79: 0 | E79: 0 | F79: 0 | G79: 0 | H79: 0
B80: Insulation | C80: 0 | D80: 0 | E80: 0 | F80: 0 | G80: 0 | H80: 0
B81: Baseboard Heaters | C81: 0 | D81: 0 | E81: 0 | F81: 0 | G81: 0 | H81: 0
B82: Air Balancing | C82: 0 | D82: 0 | E82: 0 | F82: 0 | G82: 0 | H82: 0
B83: Manuals/Documentation/As-builts | C83: 0 | D83: 0 | E83: 0 | F83: =G83-E83 -> 0 | G83: =ROUND(C83*D83,2) -> 0 | H83: =C83-G83 -> 0
B84: Mechanical subtotal: | C84: =SUM(C56:C83) -> 0 | D84: =IF(C84=0,0,G84/C84) -> 0 | E84: =SUM(E56:E83) -> 0 | F84: =SUM(F56:F83) -> 0 | G84: =SUM(G56:G83) -> 0 | H84: =SUM(H56:H83) -> 0
A86: 26 00 00 | B86: Electrical - Labour | C86: 0 | D86: 0 | E86: 0 | F86: =G86-E86 -> 0 | G86: =ROUND(C86*D86,2) -> 0 | H86: =C86-G86 -> 0
B87: Electrical - other | C87: 0 | D87: 0 | E87: 0 | F87: 0 | G87: 0 | H87: 0
B88: Lighting - Rough-in | D88: 0 | E88: 0 | F88: 0 | G88: 0 | H88: 0
B89: Lighting Fixtures | C89: 0 | D89: 0 | E89: 0 | F89: 0 | G89: 0 | H89: 0
B90: Transformers | C90: 0 | D90: 0 | E90: 0 | F90: =G90-E90 -> 0 | G90: =ROUND(C90*D90,2) -> 0 | H90: =C90-G90 -> 0
B91: Switchgear | C91: 0 | D91: 0 | E91: 0 | F91: =G91-E91 -> 0 | G91: =ROUND(C91*D91,2) -> 0 | H91: =C91-G91 -> 0
B92: Panels | C92: 0 | D92: 0 | E92: 0 | F92: 0 | G92: 0 | H92: 0
B93: Power - Rough-in | C93: 0 | D93: 0 | E93: 0 | F93: 0 | G93: 0 | H93: 0
B94: Devices | C94: 3000000 | D94: 0 | E94: 0 | F94: 0 | G94: 0 | H94: 3000000
B95: Manuals/Documentation/As-builts | C95: 0 | D95: 0 | E95: 0 | F95: 0 | G95: 0 | H95: 0
G96: 0
A97: 27 10 00 | B97: Data Cabling | C97: 0 | D97: 0 | E97: 0 | F97: =G97-E97 -> 0 | G97: 0 | H97: =C97-G97 -> 0
A98: 27 51 19 | B98: Sound Masking | C98: 0 | D98: 0 | E98: 0 | F98: =G98-E98 -> 0 | G98: 0 | H98: =C98-G98 -> 0
B99: Electrical subtotal: | C99: =SUM(C86:C98) -> 3000000 | D99: =IF(C99=0,0,G99/C99) -> 0 | E99: =SUM(E86:E98) -> 0 | F99: =SUM(F86:F98) -> 0 | G99: =SUM(G86:G98) -> 0 | H99: =SUM(H86:H98) -> 3000000
B101: Base Contract subtotal: | C101: =C54+C84+C99 -> 3000000 | D101: =IF(C101=0,0,G101/C101) -> 0 | E101: =E54+E84+E99 -> 0 | F101: =F54+F84+F99 -> 0 | G101: =G54+G84+G99 -> 0 | H101: =H54+H84+H99 -> 3000000
C102: =IF(Contract_Amount<>'App For Payment-Template'!C101,"The base contract subtotal doesn't match the amount on the Project Info tab.","") -> The base contract subtotal doesn't match the amount on the Project Info tab.
A103: Cash Allowances:
A104: 1 | C104: 0 | D104: 0 | E104: 0 | F104: =G104-E104 -> 0 | G104: =ROUND(C104*D104,2) -> 0 | H104: =C104-G104 -> 0
A105: 2 | C105: 0 | D105: 0 | E105: 0 | F105: =G105-E105 -> 0 | G105: =ROUND(C105*D105,2) -> 0 | H105: =C105-G105 -> 0
A106: 3 | C106: 0 | E106: 0 | F106: =G106-E106 -> 0 | G106: =ROUND(C106*D106,2) -> 0 | H106: =C106-G106 -> 0
B107: Cash Allowance subtotal: | C107: =SUM(C104:C106) -> 0 | D107: =IF(C107=0,0,G107/C107) -> 0 | E107: =SUM(E104:E106) -> 0 | F107: =SUM(F104:F106) -> 0 | G107: =SUM(G104:G106) -> 0 | H107: =SUM(H104:H106) -> 0
B109: Contract subtotal: | C109: =C101+C107 -> 3000000 | D109: =IF(C109=0,0,G109/C109) -> 0 | E109: =E101+E107 -> 0 | F109: =F101+F107 -> 0 | G109: =G101+G107 -> 0 | H109: =H101+H107 -> 3000000
A112: Issued Change Orders: | I112: Approved | J112: CO Amount
A113: 1 | B113: CO title | C113: =IF(ISBLANK($I113),0,$J113) -> 0 | D113: 0 | E113: 0 | F113: =G113-E113 -> 0 | G113: =ROUND(C113*D113,2) -> 0 | H113: =C113-G113 -> 0 | J113: 0
A114: 2 | C114: =IF(ISBLANK($I114),0,$J114) -> 0 | D114: 0 | E114: 0 | F114: 0 | G114: =ROUND(C114*D114,2) -> 0 | H114: 0 | J114: 0
A115: 3 | C115: 0 | D115: 0 | E115: 0 | F115: 0 | G115: 0 | H115: 0 | J115: 0
A116: 4 | C116: 0 | D116: 0 | E116: 0 | F116: 0 | G116: 0 | H116: 0 | J116: 0
A117: 5 | C117: 0 | D117: 0 | E117: 0 | F117: 0 | G117: 0 | H117: 0 | J117: 0
A118: 6 | C118: 0 | D118: 0 | E118: 0 | F118: 0 | G118: 0 | H118: 0 | J118: 0
A119: 7 | C119: 0 | D119: 0 | E119: 0 | F119: 0 | G119: 0 | H119: 0 | J119: 0
A120: 8 | C120: 0 | D120: 0 | E120: 0 | F120: 0 | G120: 0 | H120: 0 | J120: 0
A121: 9 | C121: 0 | D121: 0 | E121: 0 | F121: 0 | G121: 0 | H121: 0 | J121: 0
A122: 10 | C122: 0 | E122: 0 | F122: 0 | G122: 0 | H122: 0 | J122: 0
B123: Change Order subtotal: | C123: =SUM(C113:C122) -> 0 | D123: =IF(C123=0,0,G123/C123) -> 0 | E123: =SUM(E113:E122) -> 0 | F123: =SUM(F113:F122) -> 0 | G123: =SUM(G113:G122) -> 0 | H123: =SUM(H113:H122) -> 0 | J123: =SUM(J113:J122) -> 0
B124: Contract amount: | C124: =C109+C123 -> 3000000 | D124: =IF(C124=0,0,G124/C124) -> 0 | E124: =E109+E123 -> 0 | F124: =F109+F123 -> 0 | G124: =G109+G123 -> 0 | H124: =H109+H123 -> 3000000
A126: Issued Change Directives: | I126: Approved | J126: Undisputed Amount | L126: Estimated CD Amount
A127: 1 | B127: CD title | C127: =IF(ISBLANK($I127),0,$J127) -> 0 | D127: 0 | E127: 0 | F127: =G127-E127 -> 0 | G127: =ROUND(C127*D127,2) -> 0 | H127: =C127-G127 -> 0 | J127: 0 | L127: 0
A128: 2 | C128: =IF(ISBLANK($I128),0,$J128) -> 0 | D128: 0 | E128: 0 | F128: 0 | G128: =ROUND(C128*D128,2) -> 0 | H128: 0 | J128: 0 | L128: 0
A129: 3 | C129: 0 | D129: 0 | E129: 0 | F129: 0 | G129: 0 | H129: 0 | J129: 0 | L129: 0
A130: 4 | C130: 0 | D130: 0 | E130: 0 | F130: 0 | G130: 0 | H130: 0 | J130: 0 | L130: 0
A131: 5 | C131: 0 | D131: 0 | E131: 0 | F131: 0 | G131: 0 | H131: 0 | J131: 0 | L131: 0
A132: 6 | C132: 0 | D132: 0 | E132: 0 | F132: 0 | G132: 0 | H132: 0 | J132: 0 | L132: 0
A133: 7 | C133: 0 | D133: 0 | E133: 0 | F133: 0 | G133: 0 | H133: 0 | J133: 0 | L133: 0
A134: 8 | C134: 0 | D134: 0 | E134: 0 | F134: 0 | G134: 0 | H134: 0 | J134: 0 | L134: 0
A135: 9 | C135: 0 | D135: 0 | E135: 0 | F135: 0 | G135: 0 | H135: 0 | J135: 0 | L135: 0
A136: 10 | C136: 0 | E136: 0 | F136: 0 | G136: 0 | H136: 0 | J136: 0 | L136: 0
B137: Change Directive subtotal: | C137: =SUM(C127:C136) -> 0 | D137: =IF(C137=0,0,G137/C137) -> 0 | E137: =SUM(E127:E136) -> 0 | F137: =SUM(F127:F136) -> 0 | G137: =SUM(G127:G136) -> 0 | H137: =SUM(H127:H136) -> 0 | J137: =SUM(J127:J136) -> 0 | L137: =SUM(L127:L136) -> 0
B138: Contract amount: | C138: =C124+C137 -> 3000000 | D138: =IF(C138=0,0,G138/C138) -> 0 | E138: =E124+E137 -> 0 | F138: =F124+F137 -> 0 | G138: 0 | H138: 3000000
A141: Trial Certificate For Payment: | C141: - | E141: =IF(CertQualifier="-", "<-- Select certificate qualifier","") -> <-- Select certificate qualifier
C142: =C6 -> Contract Amount | D142: % to Date | E142: Previous Amount | F142: Amount This Draw | G142: Completed to Date | H142: Balance to Complete
B143: Sub Total | C143: =C54+C84+C99+C107+C123+C137 -> 3000000 | D143: =IF(C143=0,0,G143/C143) -> 0 | E143: =E54+E84+E99+E107+E123+E137 -> 0 | F143: 0 | G143: 0 | H143: 3000000 | I143: asdf
B144: ='Project Info'!$C$42&" at "&$D158*100&"%" -> HST at 13% | C144: =ROUND(C143*$D$158,2) -> 390000
B145: Total Contract | C145: =SUM(C143:C144) -> 3390000
C147: Deficiency retainage
C148: Basic holdback of | D148: ='Project Info'!C37 -> 0.1 | G148: =IF($F$174="Substantially performed",ROUND($H$176*$D$148,2),ROUND(WorkFinished*$D$148,2)) -> 0
C149: Finishing holdback of | D149: ='Project Info'!C38 -> 0.1 | G149: =IF($H$176=0,0,ROUND((WorkFinished-$H$176)*$D$149,2)) -> 0
C150: Current work less holdbacks | G150: =G143-G147-G148-G149 -> 0
C152: Holdback previously released | F152: 0
C153: Holdback released this issue | H153: =HbCurRel -> 0
C154: Total holdback released | G154: =F152+F153 -> 0
C155: Payable to date | G155: =G150+G154 -> 0
C156: Previously payable (from payable to date on previous certificate) | H156: =IF(ISBLANK(G156),"<-enter value",IF(ROUND($F$143*0.9,2)=$G$157," - ","Check previously payable amount.")) -> <-enter value
C157: Payable this issue | G157: =G155-G156 -> 0
C158: ='Project Info'!$C$42&" payable" -> HST payable | D158: ='Project Info'!$C$41 -> 0.13 | G158: =ROUND(G157*D158,2) -> 0
F159: Total: | G159: =G157+G158 -> 0
F160: Adjustment to match invoice: | G160: 0
F161: Total payable: | G161: =G159+G160 -> 0
A164: Trial Certificate of Substantial Performance: | E164: ="Based on the "&Lookups!$AE$30 -> Based on the Construction Act, Ontario | H164: yyyy-mm-dd
B165: Initial Contract Amount | C165: ='Project Info'!$C$30 -> 1234567.89 | F165: =Lookups!U30&":" -> Date of Publication:
B166: Revised Contract Amount | C166: =IF(C$143=0,C$165,C$143) -> 3000000 | F166: Lien Period: | G166: =Lookups!N30 -> 60 | H166: days
B167: =Lookups!$O$30*100&"% on 1st $"&Lookups!$P$30 -> 3% on 1st $1000000 | C167: =IF(C166>Lookups!$P$30,Lookups!$P$30,C166) -> 1000000 | D167: =Lookups!$O$30 -> 0.03 | E167: =ROUND($C167*$D167,2) -> 30000 | F167: Expiry of Lien Period: | H167: =IF(ISBLANK(H165),"",H165+G166) -> 
B168: =Lookups!$Q$30*100&"% on next $"&Lookups!$R$30 -> 2% on next $1000000 | C168: =IF(C166>Lookups!$P$30+Lookups!$R$30,Lookups!$R$30,C166-C167) -> 1000000 | D168: =Lookups!$Q$30 -> 0.02 | E168: =ROUND($C168*$D168,2) -> 20000 | H168: =IF(ISBLANK(H165),"",LOOKUP(WEEKDAY(H167),DOW)) -> 
B169: =Lookups!$S$30*100&"% on remainder" -> 1% on remainder | C169: =IF(D169=0,0,IF(C166>Lookups!$P$30+Lookups!$R$30,C166-C167-C168,0)) -> 1000000 | D169: =Lookups!$S$30 -> 0.01 | E169: =ROUND($C169*$D169,2) -> 10000 | F169: Release of Holdback: | H169: =IF(ISBLANK(H165),"",H165+G166+1) -> 
B170: Maximum outstanding per lien act | E170: =SUM(E167:E169) -> 60000 | H170: =IF(ISBLANK(H165),"",LOOKUP(WEEKDAY(H169),DOW)) -> 
B172: Balance to complete per Schedule of Values | E172: =H143 -> 3000000 | F172: =IF(E172<0.01,Lookups!AC30,IF(E170>E172, "Substantially performed before deferals", "Not Substantially performed before deferals")) -> Not Substantially performed before deferals
B173: Amount agreed to be deferred
B174: Adjusted Balance to Complete | E174: =E172-E173 -> 3000000 | F174: =IF(E174<0.01,Lookups!AC30,IF(E170>E174,"Substantially performed","Not Substantially performed")) -> Not Substantially performed
B175: Margin | E175: =E170-E174 -> -2940000 | F175: =IF($F$174="Substantially performed","Enter the value of the work completed to date (Amount this Draw) at substantial performance:","Leave blank until substantially performed:") -> Leave blank until substantially performed:
B176: Sliding percentage: | D176: =IF(C166=0,0,SUM(E167:E169)/C166) -> 0.02 | H176: 0
A179: ="Holdback Released after "&Lookups!U30 &" of " &Lookups!V30 &": " -> Holdback Released after Date of Publication of Certificate of Substantial Performance:
B180: Revised Contract Amount | C180: =IF(C$143=0,C$165,C$143) -> 3000000
B181: A1 Basic holdback: | C181: =IF($H$176=0,ROUND($D$181*$G$181,2),ROUND($D$181*$H$176,2)) -> 0 | D181: =D148 -> 0.1 | E181: =IF($F$174="Substantially performed","of the value of work completed at substantial performance.","of the value of work completed to date. ") -> of the value of work completed to date. | G181: =IF($H$176=0,G$143,$H$176) -> 0
B182: A2 Finishing holdback: | C182: =ROUND((WorkFinished-$H$176)*D182,2) -> 0 | D182: =IF($H$176=0,0,D149) -> 0 | E182: =IF($H$176=0,"","of the value of work completed after substantial.") -> 
C183: =C181+C182 -> 0
B184: B Previously released: | C184: =F$152 -> 0
B185: C Holdback remaining: | C185: =C183-C184 -> 0
B188: Balance to Complete per schedule of values | E188: =H$143 -> 3000000
A191: ="Trial " &Lookups!AA30 &":" -> Trial Deemed Completion: | E191: ="Based on the "&Lookups!$AE$30 -> Based on the Construction Act, Ontario | H191: yyyy-mm-dd
B192: Revised Contract Amount | C192: =IF(C143=0,C165,C143) -> 3000000 | F192: ="Date "&Lookups!$AD$30&": " -> Date Deemed Complete:
B193: A % of contract amount | D193: =Lookups!$Y$30 -> 0.01 | E193: =ROUND(C192*D193,2) -> 30000 | F193: Lien Period: | G193: =Lookups!X30 -> 60 | H193: days
B194: ="B " & Act -> B Construction Act, Ontario | E194: =Lookups!$Z$30 -> 5000 | F194: Expiry of Lien Period: | H194: =IF(ISBLANK(H192),"",H192+G193) -> 
B195: =IF(TRIM(Province)="Ontario"," (Section 2 subsection (3) limit)","") -> (Section 2 subsection (3) limit) | H195: =IF(ISBLANK(H192),"",LOOKUP(WEEKDAY(H194),DOW)) -> 
B196: Maximum outstanding per lien act (lesser of A and B) | E196: =IF(E193>E194,E194,E193) -> 5000 | F196: ="Release of " &Lookups!AB30 &":" -> Release of Finishing Holdback: | H196: =IF(ISBLANK(H192),"",H192+G193+1) -> 
H197: =IF(ISBLANK(H192),"",LOOKUP(WEEKDAY(H196),DOW)) -> 
B198: Balance to Complete per schedule of values | E198: =IF(D193=0,0,H143) -> 3000000 | F198: =IF(D193=0,"Not Applicable",IF(E196>E198,Lookups!$AD$30,"Not "&Lookups!$AD$30)) -> Not Deemed Complete
H199: ='Project Info'!$L$1 -> Rev. 2019 01

Sheet Certificates For Payment
A1: ='Project Info'!C24 -> Visionary Architects | H1: Certificate for Payment | M1: template | N1: =IF($M$1="Template","App For Payment-" & $M$1, IF($M$1<10,"App For Payment-0" & $M$1,"App For Payment-" & $M$1)) -> App For Payment-template | O1: Enter the number of the Application for Payment for which you want to show the Certificate for Payment:
A2: ='Project Info'!C25 -> Address line 1 | N2: =IF($M$1="Template","StartDate", IF($M$1<2,"StartDate",IF($M$1<11,"App For Payment-0" & $M$1-1,"App For Payment-" & $M$1-1))) -> StartDate
A3: ='Project Info'!C26 -> Address line 2
A4: ="Tel: " & 'Project Info'!C27 & " Fax: " & 'Project Info'!C28 -> Tel: (999) 123-4567 Fax: (000) 987-6543 | N4: =COLUMN(INDIRECT("'"& $N$1 & "'" &"!CertQualifier")) -> 3
N5: =ROW(INDIRECT("'"& $N$1 & "'" &"!CertQualifier")) -> 141
A6: Project: | C6: ='Project Info'!C22 -> Award Winner | H6: Certificate for Payment: | I6: =$M$1 -> template | N6: =ADDRESS(N5,N4,4,1) -> C141
A7: Project Number: | C7: ='Project Info'!C21 -> 18.32001.00 | H7: =IF(INDIRECT("'"& $N$1 & "'" & "!CertQualifier")="-","Select Certificate qualifier in cell " & $N$6 & " on the AfP tab before printing this certificate.",INDIRECT("'"& $N$1 & "'" &"!CertQualifier")) -> Select Certificate qualifier in cell C141 on the AfP tab before printing this certificate.
A8: Owner: | C8: ='Project Info'!C16 -> Favourite Client Company | H8: Issue Date: | I8: =TEXT(INDIRECT("'"& $N$1 & "'" &"!IssueDate"), "YYYY MM DD") -> 2020 05 07
C9: ='Project Info'!C17 -> Client Address 1
C10: ='Project Info'!C18 -> Client Address 2
A12: Attention: | C12: ='Project Info'!C19 -> Favourite Person | H12: File:
A14: ="This is to certify that "&'Project Info'!C29&" has completed work and delivered products to the place of the work to date, to the value of "&TEXT(E31,"$#,##0.00")&" and is entitled to "&TEXT(H43,"$#,##0.00")&" for the period from " & TEXT( INDIRECT($N$2), "MMMM DD, YYYY")&" to "&TEXT( INDIRECT("'"&$N$1&"'"&"!PeriodEnding"),"MMMM DD, YYYY")&"." -> This is to certify that Quality Contractors Inc. has completed work and delivered products to the place of the work to date, to the value of $0.00 and is entitled to $0.00 for the period from July 01, 2018 to July 31, 2018.
A15: By law, the amount certified is subject to reduction by the amount of any lien of which you have received written notice. The certificate is not negotiable, and is payable to the payee named in it. Issuance, payment, and acceptance are without prejudice to any rights of the Owner or Contractor under their contract.
A17: The issue of this Certificate for Payment shall not be taken as a representation that the Consultant has made any examination to ascertain how and for what purpose the Contractor has used monies paid on account of the contract or that the Contractor has discharged the obligations imposed on him/her by law under the Worker's Compensation Act, or other applicable statutes, non-compliance with which may render the Client personaly liable for the Contractor's default.
A19: ='Project Info'!C24 -> Visionary Architects | H19: ='Project Info'!C29 -> Quality Contractors Inc.
A21: Per:
A22: Consultant's Signature: | H22: Contractor's Acknowledgement
H25: Date
A28: Original Contract Amount | E28: ='Project Info'!$C$30 -> 1234567.89
A29: Total Changes to Date | E29: =INDIRECT("'"& $N$1 & "'" &"!ChangesToDate") -> 0
A30: Current Contract Amount | E30: =E28+E29 -> 1234567.89 | H30: =E30 -> 1234567.89
A31: Value of Work Finished | E31: =INDIRECT("'"& $N$1 & "'" &"!WorkFinished") -> 0
A32: Deficiency Retainage | E32: =INDIRECT("'"& $N$1 & "'" &"!DeficiencyRetainage") -> 0
A33: ="Statutory Holdback (basic) @ " & TEXT('Project Info'!C37*100,"#0") & " %" -> Statutory Holdback (basic) @ 10 % | E33: =INDIRECT("'"& $N$1 & "'" &"!StatHoldback") -> 0
A34: ="Statutory Holdback (finishing) @ " & TEXT('Project Info'!C38*100,"#0") & " %" -> Statutory Holdback (finishing) @ 10 % | E34: =INDIRECT("'"& $N$1 & "'" &"!StatFinHoldback") -> 0
A35: Current Work less Holdbacks | E35: =E31-E32-E33-E34 -> 0 | H35: =E35 -> 0
A36: Holdback Previously Released | E36: =INDIRECT("'"& $N$1 & "'" &"!HbPrevRel") -> 0
A37: Holdback Released This Issue | E37: =INDIRECT("'"& $N$1 & "'" &"!HbCurRel") -> 0
A38: Total Holdback Released | E38: =E36+E37 -> 0 | H38: =E38 -> 0
A39: Payable to Date | H39: =INDIRECT("'"& $N$1 & "'" &"!PayableToDate") -> 0
A40: Less Previously Payable | H40: =INDIRECT("'"& $N$1 & "'" &"!PreviouslyPayable") -> 0
A41: Payable This Issue | H41: =H39-H40 -> 0
A42: ="Applicable Taxes for Place of the Work " & 'Project Info'!C42 & " @ " & TEXT('Project Info'!C41*100,"#0") & " %" -> Applicable Taxes for Place of the Work HST @ 13 % | H42: =INDIRECT("'"& $N$1 & "'" &"!TaxesThisIssue") -> 0
A43: Total Payable This Issue | H43: =INDIRECT("'"& $N$1 & "'" &"!TotalPayable") -> 0

Sheet Cert For Pay (Annual or Phased)
A1: ='Project Info'!C24 -> Visionary Architects | H1: Certificate for Payment | M1: template | N1: =IF($M$1="Template","App For Payment-" & $M$1, IF($M$1<10,"App For Payment-0" & $M$1,"App For Payment-" & $M$1)) -> App For Payment-template | O1: Enter the number of the Application for Payment for which you want to show the Certificate for Payment:
A2: ='Project Info'!C25 -> Address line 1 | N2: =IF($M$1="Template","StartDate", IF($M$1<2,"StartDate",IF($M$1<11,"App For Payment-0" & $M$1-1,"App For Payment-" & $M$1-1))) -> StartDate
A3: ='Project Info'!C26 -> Address line 2
A4: ="Tel: " & 'Project Info'!C27 & " Fax: " & 'Project Info'!C28 -> Tel: (999) 123-4567 Fax: (000) 987-6543 | N4: =COLUMN(INDIRECT("'"& $N$1 & "'" &"!CertQualifier")) -> 3
N5: =ROW(INDIRECT("'"& $N$1 & "'" &"!CertQualifier")) -> 141
A6: Project: | C6: ='Project Info'!C22 -> Award Winner | H6: Certificate for Payment: | I6: =$M$1 -> template | N6: =ADDRESS(N5,N4,4,1) -> C141
A7: Project Number: | C7: ='Project Info'!C21 -> 18.32001.00 | H7: =IF(INDIRECT("'"& $N$1 & "'" & "!CertQualifier")="-","Select Certificate qualifier in cell " & $N$6 & " on the AfP tab before printing this certificate.",INDIRECT("'"& $N$1 & "'" &"!CertQualifier")) -> Select Certificate qualifier in cell C141 on the AfP tab before printing this certificate.
A8: Owner: | C8: ='Project Info'!C16 -> Favourite Client Company | H8: Issue Date: | I8: =TEXT(INDIRECT("'"& $N$1 & "'" &"!IssueDate"), "YYYY MM DD") -> 2020 05 07
C9: ='Project Info'!C17 -> Client Address 1
C10: ='Project Info'!C18 -> Client Address 2
A12: Attention: | C12: ='Project Info'!C19 -> Favourite Person | H12: File:
A14: ="This is to certify that "&'Project Info'!C29&" has completed work and delivered products to the place of the work to date, to the value of "&TEXT(E31,"$#,##0.00")&" and is entitled to "&TEXT(H42,"$#,##0.00")&" for the period from " & TEXT( INDIRECT($N$2), "MMMM DD, YYYY")&" to "&TEXT( INDIRECT("'"&$N$1&"'"&"!PeriodEnding"),"MMMM DD, YYYY")&"." -> This is to certify that Quality Contractors Inc. has completed work and delivered products to the place of the work to date, to the value of $0.00 and is entitled to $0.00 for the period from July 01, 2018 to July 31, 2018.
A15: By law, the amount certified is subject to reduction by the amount of any lien of which you have received written notice. The certificate is not negotiable, and is payable to the payee named in it. Issuance, payment, and acceptance are without prejudice to any rights of the Owner or Contractor under their contract.
A17: The issue of this Certificate for Payment shall not be taken as a representation that the Consultant has made any examination to ascertain how and for what purpose the Contractor has used monies paid on account of the contract or that the Contractor has discharged the obligations imposed on him/her by law under the Worker's Compensation Act, or other applicable statutes, non-compliance with which may render the Client personaly liable for the Contractor's default.
A19: ='Project Info'!C24 -> Visionary Architects | H19: ='Project Info'!C29 -> Quality Contractors Inc.
A21: Per:
A22: Consultant's Signature: | H22: Contractor's Acknowledgement
H25: Date
A28: Original Contract Amount | E28: ='Project Info'!$C$30 -> 1234567.89
A29: Total Changes to Date | E29: =INDIRECT("'"& $N$1 & "'" &"!ChangesToDate") -> 0
A30: Current Contract Amount | E30: =E28+E29 -> 1234567.89 | H30: =E30 -> 1234567.89
A31: Value of Work Finished | E31: =INDIRECT("'"& $N$1 & "'" &"!WorkFinished") -> 0
A32: Deficiency Retainage | E32: =INDIRECT("'"& $N$1 & "'" &"!DeficiencyRetainage") -> 0
A33: ="Statutory Holdback @ " & TEXT('Project Info'!C38*100,"#0") & " %" -> Statutory Holdback @ 10 % | E33: =INDIRECT("'"& $N$1 & "'" &"!StatFinHoldback") -> 0
A34: Current Work less Holdbacks | E34: =E31-E32-E33 -> 0 | H34: =E34 -> 0
A35: Holdback Previously Released | E35: =INDIRECT("'"& $N$1 & "'" &"!HbPrevRel") -> 0
A36: Holdback Released This Issue | E36: =INDIRECT("'"& $N$1 & "'" &"!HbCurRel") -> 0
A37: Total Holdback Released | E37: =E35+E36 -> 0 | H37: =E37 -> 0
A38: Payable to Date | H38: =INDIRECT("'"& $N$1 & "'" &"!PayableToDate") -> 0
A39: Less Previously Payable | H39: =INDIRECT("'"& $N$1 & "'" &"!PreviouslyPayable") -> 0
A40: Payable This Issue | H40: =H38-H39 -> 0
A41: ="Applicable Taxes for Place of the Work " & 'Project Info'!C42 & " @ " & TEXT('Project Info'!C41*100,"#0") & " %" -> Applicable Taxes for Place of the Work HST @ 13 % | H41: =INDIRECT("'"& $N$1 & "'" &"!TaxesThisIssue") -> 0
A42: Total Payable This Issue | H42: =INDIRECT("'"& $N$1 & "'" &"!TotalPayable") -> 0

Sheet Lookups
A2: Project location: | B2: =Province -> Ontario
G3: ProvinceList | K3: CfP_Purpose | O3: HB_Release
G4: Ontario | K4: - | O4: -
G5: British Columbia | K5: Progress Payment | O5: Substantial Performance
G6: Alberta | K6: Substantial Performance | O6: Completion
G7: Saskatchewan | K7: Release of Basic Holdback | O7: Annual Release
G8: Manitoba | K8: Release of Finishing Holdback | O8: Phased Release
G9: Quebec | K9: Release of Holdback
A10: DOW | B10: Name | C10: Add to skip weekend | G10: New Brunswick | K10: Release of Holdback (Annual)
A11: 1 | B11: Sunday | C11: 1 | G11: Nova Scotia | K11: Release of Holdback (Phased)
A12: 2 | B12: Monday | C12: 0 | G12: Prince Edward Island | K12: Deemed Completion
A13: 3 | B13: Tuesday | C13: 0 | G13: Newfoundland | K13: Completion
A14: 4 | B14: Wednesday | C14: 0 | G14: Yukon | K14: Achevement substantiel de l'ouvrage
A15: 5 | B15: Thursday | C15: 0 | G15: Nunavut
A16: 6 | B16: Friday | C16: 0 | G16: Northwest Territory
A17: 7 | B17: Saturday | C17: 2 | K17: Deemed Completion
D20: GST | E20: 0.05
D21: QST | E21: 0.095
D22: QST_Blended | E22: =((1+E20)*(1+E21)-1) -> 0.14975
A24: The information in this table must be manually updated to reflect any changes in the applicable lien legislation or tax rates.
A25: The information was valid when first entered, but must be confirmed in each jurisdiction prior to use for that jurisdiction.
I27: Calculation of Basic Holdback | O27: Calculation of Substantial Performance | U27: Release of Basic Holdback | W27: Calculation of Finishing Holdback | AA27: Release of Finishing Holdback
B28: 0 | C28: 1 | D28: 2 | E28: 3 | F28: 4 | G28: 5 | H28: 6 | I28: 7 | J28: 8 | K28: 9 | L28: 10 | M28: 11 | N28: 12 | O28: 13 | P28: 14 | Q28: 15 | R28: 16 | S28: 17 | T28: 18 | U28: 19 | V28: 20 | W28: 21 | X28: 22 | Y28: 23 | Z28: 24 | AA28: 25 | AB28: 26 | AC28: 27 | AD28: 28 | AE28: 29 | AF28: 30
B29: Province/Territory | C29: Location Selected | D29: Prov Tax Type | E29: Prov Tax Rate | F29: VAT Tax Type | G29: VAT Tax Rate | H29: Tax Rate | I29: Basic Holdback % | J29: % | K29: Change of Rate Threshold | L29: % | M29: Minimum Holdback @ Rate Change | N29: Lien Period | O29: % | P29: Limit | Q29: % | R29: Limit | S29: % | U29: Lien Period Trigger | V29: Document Issued/Status Achieved | W29: Finishing Holdback | X29: Finishing Lien Period | Y29: % | Z29: Limit of Outstanding Work | AA29: Lien Period Trigger | AE29: Legislation | AF29: Comments
A30: Selected: | B30: =Province -> Ontario | C30: X | D30: =VLOOKUP("X",$C$31:$AF$44,D$28,FALSE) -> 0 | E30: 0 | F30: HST | G30: 0.13 | H30: 0.13 | I30: 0.1 | J30: 0 | K30: 0 | L30: 1 | M30: 0 | N30: 60 | O30: 0.03 | P30: 1000000 | Q30: 0.02 | R30: 1000000 | S30: 0.01 | T30: 0 | U30: Date of Publication | V30: Certificate of Substantial Performance | W30: 0.1 | X30: 60 | Y30: 0.01 | Z30: 5000 | AA30: Deemed Completion | AB30: Finishing Holdback | AC30: Substantially Performed | AD30: Deemed Complete | AE30: Construction Act, Ontario | AF30: 0
A31: 5 CLA | B31: Ontario | C31: =IF(Province=$B31,IF(Act=$AE31,"X",""),"") ->  | F31: =IF(NOW()>DATE(2010,7,1),"HST","GST") -> HST | G31: 0.13 | H31: =G31 -> 0.13 | I31: 0.1 | L31: 1 | N31: 45 | O31: 0.03 | P31: 500000 | Q31: 0.02 | R31: 500000 | S31: 0.01 | U31: Date of Publication | V31: Certificate of Substantial Performance | W31: 0.1 | X31: 45 | Y31: 0.01 | Z31: 1000 | AA31: Deemed Completion | AB31: Finishing Holdback | AC31: Substantially Performed | AD31: Deemed Complete | AE31: Construction Lien Act, Ontario
A32: 5 CA | B32: Ontario | C32: =IF(Province=$B32,IF(Act=$AE32,"X",""),"") -> X | F32: =IF(NOW()>DATE(2010,7,1),"HST","GST") -> HST | G32: 0.13 | H32: =G32 -> 0.13 | I32: 0.1 | L32: 1 | N32: 60 | O32: 0.03 | P32: 1000000 | Q32: 0.02 | R32: 1000000 | S32: 0.01 | U32: Date of Publication | V32: Certificate of Substantial Performance | W32: 0.1 | X32: 60 | Y32: 0.01 | Z32: 5000 | AA32: Deemed Completion | AB32: Finishing Holdback | AC32: Substantially Performed | AD32: Deemed Complete | AE32: Construction Act, Ontario
A33: 6 | B33: Quebec | C33: =IF(Province=$B33,"X","") ->  | D33: QST | E33: =QST -> 0.095 | F33: GST | G33: =GST -> 0.05 | H33: =((1+G33)*(1+E33)-1) -> 0.14975 | I33: 0.1 | L33: 1 | N33: 30 | O33: 0.03 | P33: 500000 | Q33: 0.02 | R33: 500000 | S33: 0.01 | U33: Date of Issuance | V33: Certificat d'achevement substantiel de l'ouvrage | W33: 0.1 | X33: 30 | Y33: 0.01 | Z33: 1000 | AA33: Deemed Completion | AB33: Finishing Holdback | AC33: Substantially Performed | AD33: Deemed Complete | AE33: Civil Code Quebec article 2727 | AF33: based on common practice
A34: 1 | B34: British Columbia | F34: =IF(NOW()>DATE(2013,4,1),"GST","HST") -> GST | G34: =GST -> 0.05 | H34: =G34 -> 0.05 | I34: 0.1 | L34: 1 | N34: 55 | O34: 0 | P34: 0 | Q34: 0 | R34: 0 | S34: 0 | U34: Date of Issuance | V34: Certificate of Completion | W34: 0 | X34: 0 | Y34: 0 | Z34: 0 | AA34: No Finishing Holdback | AB34: Holdback | AC34: Completed | AE34: Builders Lien Act, BC
A35: 2 | B35: Alberta | F35: GST | G35: =GST -> 0.05 | H35: 0.05 | I35: 0.1 | L35: 1 | N35: 45 | O35: 0.03 | P35: 500000 | Q35: 0.02 | R35: 500000 | S35: 0.01 | U35: Date of Issuance | V35: Certificate of Substantial Performance | W35: 0.1 | X35: 45 | Y35: 0 | Z35: 0 | AA35: Completion | AB35: Finishing Holdback | AC35: Substantially Performed | AD35: Complete | AE35: Builder's Lien Act, Alberta
A36: 3 | B36: Saskatchewan | F36: GST | G36: =GST -> 0.05 | H36: 0.05 | I36: 0.1 | L36: 1 | N36: 40 | O36: 0.03 | P36: 500000 | Q36: 0.02 | R36: 500000 | S36: 0.01 | U36: Date of Issuance | V36: Certificate of Substantial Performance | W36: 0.1 | X36: 40 | Y36: 0.01 | Z36: 1000 | AA36: Deemed Completion | AB36: Finishing Holdback | AC36: Substantially Performed | AD36: Deemed Complete | AE36: Builders Lien Act, Saskatchewan
A37: 4 | B37: Manitoba | F37: GST | G37: =GST -> 0.05 | H37: 0.05 | I37: 0.075 | L37: 1 | N37: 40 | O37: 0.03 | P37: 250000 | Q37: 0.02 | R37: 250000 | S37: 0.01 | U37: Date of Issuance | V37: Certificate of Substantial Performance | W37: 0.075 | X37: 40 | Y37: 0 | Z37: 0 | AA37: Completion | AB37: Finishing Holdback | AC37: Substantially Performed | AD37: Complete | AE37: The Builders' Liens Act, Manitoba
A38: 7 | B38: New Brunswick | F38: HST | G38: 0.13 | H38: 0.13 | I38: =IF(Contract_Amount>=K38,IF($I$47<K38,J38,L38),J38) -> 0.2 | J38: 0.2 | K38: 15000 | L38: 0.15 | M38: =J38*K38 -> 3000 | N38: 60 | O38: 0 | P38: 0 | Q38: 0 | R38: 0 | S38: 0 | U38: Date of Issuance | V38: Certificate of Completion | W38: 0 | X38: 0 | Y38: 0 | Z38: 0 | AA38: No Finishing Holdback | AB38: Holdback | AC38: Completed | AE38: Mechanics' Lien Act, New Brunswick | AF38: $3,000 min or 20% if contract is < $15,000.00
A39: 8 | B39: Nova Scotia | F39: HST | G39: =IF(NOW()>DATE(2010,7,1),0.15,0.13) -> 0.15 | H39: 0.15 | I39: 0.1 | L39: 1 | N39: 60 | O39: 0.025 | P39: 500000 | Q39: 0.025 | R39: 500000 | S39: 0.025 | U39: Date of Issuance | V39: Certificate of Substantial Performance | W39: 0.025 | X39: 60 | Y39: 0 | Z39: 0 | AA39: Completion | AB39: Finishing Holdback | AC39: Substantially Performed | AD39: Complete | AE39: Builders Lien Act, Nova Scotia | AF39: Finishing holdback is 2.5% of work done, not of work remaining
A40: 9 | B40: Prince Edward Island | F40: HST | G40: 0.14 | H40: 0.14 | I40: =IF(Contract_Amount>=K40,IF($I$47<K40,J40,L40),J40) -> 0.2 | J40: 0.2 | K40: 15000 | L40: 0.15 | M40: =J40*K40 -> 3000 | N40: 60 | O40: 0 | P40: 0 | Q40: 0 | R40: 0 | S40: 0 | U40: Date of Issuance | V40: Certificate of Completion | W40: 0 | X40: 0 | Y40: 0 | Z40: 0 | AA40: No Finishing Holdback | AB40: Holdback | AC40: Substantially Performed | AE40: Mechanics' Lien Act, P.E.I. | AF40: $3,000 min or 20% if contract is < $15,000.00
A41: 10 | B41: Newfoundland | F41: HST | G41: 0.13 | H41: 0.13 | I41: 0.1 | L41: 1 | N41: 30 | O41: 0.03 | P41: 250000 | Q41: 0.02 | R41: 250000 | S41: 0.01 | U41: Date of Issuance | V41: Certificate of Substantial Performance | W41: 0 | X41: 0 | Y41: 0 | Z41: 0 | AA41: No Finishing Holdback | AB41: Holdback | AC41: Substantially Performed | AE41: Mechanics' Lien Act, Newfoundland
A42: 11 | B42: Yukon | F42: GST | G42: =GST -> 0.05 | H42: 0.05 | I42: 0.1 | L42: 1 | N42: 30 | O42: 0 | P42: 0 | Q42: 0 | R42: 0 | S42: 0 | U42: Date of Achievement | V42: Completion | W42: 0 | X42: 0 | Y42: 0 | Z42: 0 | AA42: No Finishing Holdback | AB42: Holdback | AC42: Completed | AE42: Lien Act, Yukon
A43: 12 | B43: Nunavut | F43: GST | G43: =GST -> 0.05 | H43: 0.05 | I43: 0.1 | L43: 1 | N43: 45 | O43: 0 | P43: 0 | Q43: 0 | R43: 0 | S43: 0 | U43: Date of Achievement | V43: Completion | W43: 0 | X43: 0 | Y43: 0 | Z43: 0 | AA43: No Finishing Holdback | AB43: Holdback | AC43: Completed | AE43: Mechanics Lien, Nunavut
A44: 13 | B44: Northwest Territory | F44: GST | G44: =GST -> 0.05 | H44: 0.05 | I44: 0.1 | L44: 1 | N44: 45 | O44: 0 | P44: 0 | Q44: 0 | R44: 0 | S44: 0 | U44: Date of Achievement | V44: Completion | W44: 0 | X44: 0 | Y44: 0 | Z44: 0 | AA44: No Finishing Holdback | AB44: Holdback | AC44: Completed | AE44: Lien Act, NWT
AE45: Insert above this row
B47: Completed to date calculation for NB & PEI due to sliding scale of holdback percentages | I47: =MAX(O50:O97) -> 0
C49: Sheet name | D49: Cert # | E49: Named range | H49: Concatenation of cell address | P49: NB | Q49: PEI
B50: Schedule of Values- | C50: App For Payment- | D50: 01 | E50: '!WorkFinished | G50: ="'" &$C$50 & $D50 & $E$50 -> 'App For Payment-01'!WorkFinished | M50: =INDIRECT(G50) ->  | O50: =IF(ISERR(M50),0,M50) -> 0 | P50: =IF(Contract_Amount>=$K$38,IF($O50<=$K$38,$J$38,$L$38),$J$38) -> 0.2 | Q50: =IF(Contract_Amount>=$K$40,IF($O50<=$K$40,$J$40,$L$40),$J$40) -> 0.2
D51: 02 | G51: 'App For Payment-02'!WorkFinished | O51: =IF(ISERR(M51),0,M51) -> 0 | P51: 0.2 | Q51: 0.2
D52: 03 | G52: 'App For Payment-03'!WorkFinished | O52: 0 | P52: 0.2 | Q52: 0.2
D53: 04 | G53: 'App For Payment-04'!WorkFinished | M53: =INDIRECT(G53) ->  | O53: =IF(ISERR(M53),0,M53) -> 0 | P53: 0.2 | Q53: 0.2
D54: 05 | G54: 'App For Payment-05'!WorkFinished | O54: 0 | P54: 0.2 | Q54: 0.2
D55: 06 | G55: 'App For Payment-06'!WorkFinished | O55: 0 | P55: 0.2 | Q55: 0.2
D56: 07 | G56: 'App For Payment-07'!WorkFinished | O56: 0 | P56: 0.2 | Q56: 0.2
D57: 08 | G57: 'App For Payment-08'!WorkFinished | O57: 0 | P57: 0.2 | Q57: 0.2
D58: 09 | G58: 'App For Payment-09'!WorkFinished | O58: 0 | P58: 0.2 | Q58: 0.2
D59: 10 | G59: 'App For Payment-10'!WorkFinished | O59: 0 | P59: 0.2 | Q59: 0.2
D60: 11 | G60: 'App For Payment-11'!WorkFinished | O60: 0 | P60: 0.2 | Q60: 0.2
D61: 12 | G61: 'App For Payment-12'!WorkFinished | O61: 0 | P61: 0.2 | Q61: 0.2
D62: 13 | G62: 'App For Payment-13'!WorkFinished | O62: 0 | P62: 0.2 | Q62: 0.2
D63: 14 | G63: 'App For Payment-14'!WorkFinished | O63: 0 | P63: 0.2 | Q63: 0.2
D64: 15 | G64: 'App For Payment-15'!WorkFinished | O64: 0 | P64: 0.2 | Q64: 0.2
D65: 16 | G65: 'App For Payment-16'!WorkFinished | O65: 0 | P65: 0.2 | Q65: 0.2
D66: 17 | G66: 'App For Payment-17'!WorkFinished | O66: 0 | P66: 0.2 | Q66: 0.2
D67: 18 | G67: 'App For Payment-18'!WorkFinished | O67: 0 | P67: 0.2 | Q67: 0.2
D68: 19 | G68: 'App For Payment-19'!WorkFinished | O68: 0 | P68: 0.2 | Q68: 0.2
D69: 20 | G69: 'App For Payment-20'!WorkFinished | O69: 0 | P69: 0.2 | Q69: 0.2
D70: 21 | G70: 'App For Payment-21'!WorkFinished | O70: 0 | P70: 0.2 | Q70: 0.2
D71: 22 | G71: 'App For Payment-22'!WorkFinished | O71: 0 | P71: 0.2 | Q71: 0.2
D72: 23 | G72: 'App For Payment-23'!WorkFinished | O72: 0 | P72: 0.2 | Q72: 0.2
D73: 24 | G73: 'App For Payment-24'!WorkFinished | O73: 0 | P73: 0.2 | Q73: 0.2
D74: 25 | G74: 'App For Payment-25'!WorkFinished | O74: 0 | P74: 0.2 | Q74: 0.2
D75: 26 | G75: 'App For Payment-26'!WorkFinished | O75: 0 | P75: 0.2 | Q75: 0.2
D76: 27 | G76: 'App For Payment-27'!WorkFinished | O76: 0 | P76: 0.2 | Q76: 0.2
D77: 28 | G77: 'App For Payment-28'!WorkFinished | O77: 0 | P77: 0.2 | Q77: 0.2
D78: 29 | G78: 'App For Payment-29'!WorkFinished | O78: 0 | P78: 0.2 | Q78: 0.2
D79: 30 | G79: 'App For Payment-30'!WorkFinished | O79: 0 | P79: 0.2 | Q79: 0.2
D80: 31 | G80: 'App For Payment-31'!WorkFinished | O80: 0 | P80: 0.2 | Q80: 0.2
D81: 32 | G81: 'App For Payment-32'!WorkFinished | M81: =INDIRECT(G81) ->  | O81: =IF(ISERR(M81),0,M81) -> 0 | P81: 0.2 | Q81: 0.2
D82: 33 | G82: 'App For Payment-33'!WorkFinished | O82: 0 | P82: 0.2 | Q82: 0.2
D83: 34 | G83: 'App For Payment-34'!WorkFinished | O83: 0 | P83: 0.2 | Q83: 0.2
D84: 35 | G84: 'App For Payment-35'!WorkFinished | O84: 0 | P84: 0.2 | Q84: 0.2
D85: 36 | G85: 'App For Payment-36'!WorkFinished | O85: 0 | P85: 0.2 | Q85: 0.2
D86: 37 | G86: 'App For Payment-37'!WorkFinished | O86: 0 | P86: 0.2 | Q86: 0.2
D87: 38 | G87: 'App For Payment-38'!WorkFinished | O87: 0 | P87: 0.2 | Q87: 0.2
D88: 39 | G88: 'App For Payment-39'!WorkFinished | O88: 0 | P88: 0.2 | Q88: 0.2
D89: 40 | G89: 'App For Payment-40'!WorkFinished | O89: 0 | P89: 0.2 | Q89: 0.2
D90: 41 | G90: 'App For Payment-41'!WorkFinished | O90: 0 | P90: 0.2 | Q90: 0.2
D91: 42 | G91: 'App For Payment-42'!WorkFinished | O91: 0 | P91: 0.2 | Q91: 0.2
D92: 43 | G92: 'App For Payment-43'!WorkFinished | O92: 0 | P92: 0.2 | Q92: 0.2
D93: 44 | G93: 'App For Payment-44'!WorkFinished | O93: 0 | P93: 0.2 | Q93: 0.2
D94: 45 | G94: 'App For Payment-45'!WorkFinished | O94: 0 | P94: 0.2 | Q94: 0.2
D95: 46 | G95: 'App For Payment-46'!WorkFinished | O95: 0 | P95: 0.2 | Q95: 0.2
D96: 47 | G96: 'App For Payment-47'!WorkFinished | O96: 0 | P96: 0.2 | Q96: 0.2
D97: 48 | G97: 'App For Payment-48'!WorkFinished | O97: 0 | P97: 0.2 | Q97: 0.2
D98: 49 | G98: 'App For Payment-49'!WorkFinished | M98: =INDIRECT(G98) ->  | O98: =IF(ISERR(M98),0,M98) -> 0 | P98: 0.2 | Q98: 0.2
D99: 50 | G99: 'App For Payment-50'!WorkFinished | O99: 0 | P99: 0.2 | Q99: 0.2
D100: 51 | G100: 'App For Payment-51'!WorkFinished | O100: 0 | P100: 0.2 | Q100: 0.2
D101: 52 | G101: 'App For Payment-52'!WorkFinished | O101: 0 | P101: 0.2 | Q101: 0.2

Sheet Sheet1 (hidden)
A1: DOW | B1: Name | C1: Add to skip weekend
A2: 1 | B2: Sunday | C2: 1
A3: 2 | B3: Monday | C3: 0
A4: 3 | B4: Tuesday | C4: 0
A5: 4 | B5: Wednesday | C5: 0
A6: 5 | B6: Thursday | C6: 0
A7: 6 | B7: Friday | C7: 0
A8: 7 | B8: Saturday | C8: 2
